fUST/lending_fUST_20260615
["ID","MTS","AMOUNT","RATE_DAILY","PERIOD"]
[425093711,1781485843000,-1066.17,0.0001726,2]
[425093712,1781485843000,-500.0,0.0001726,2]
[425093686,1781485843000,-500.0,0.0001726,2]
[425093688,1781485843000,-922.16,0.0001726,2]
[425093690,1781485843000,-614.05,0.0001726,2]
[425093689,1781485843000,-941.26,0.0001726,2]
[425093694,1781485843000,-1543.62,0.0001726,2]
[425093695,1781485843000,-3183.59,0.0001726,2]
[425093691,1781485843000,-500.0,0.0001726,2]
[425093693,1781485843000,-1190.23,0.0001726,2]
[425093698,1781485843000,-661.34,0.0001726,2]
[425093697,1781485843000,-625.12,0.0001726,2]
[425093744,1781485843000,-500.0,0.0001726,2]
[425093696,1781485843000,-602.24,0.0001726,2]
[425093700,1781485843000,-2321.5,0.0001726,2]
[425093701,1781485843000,-1000.0,0.0001726,2]
[425093685,1781485843000,-500.0,0.0001726,2]
[425093699,1781485843000,-500.0,0.0001726,2]
[425093702,1781485843000,-822.31,0.0001726,2]
[425093713,1781485843000,-1498.92,0.0001726,2]
[425093710,1781485843000,-1031.95,0.0001726,2]
[425093705,1781485843000,-24465.38,0.0001726,2]
[425093706,1781485843000,-1708.54,0.0001726,2]
[425093709,1781485843000,-500.0,0.0001726,2]
[425093714,1781485843000,-2499.39,0.0001726,2]
[425093715,1781485843000,-500.0,0.0001726,2]
[425093707,1781485843000,-500.0,0.0001726,2]
[425093704,1781485843000,-4238.28,0.0001726,2]
[425093692,1781485843000,-2430.55,0.0001726,2]
[425093703,1781485843000,-500.0,0.0001726,2]
[425093708,1781485843000,-500.0,0.0001726,2]
[425093791,1781485844000,-500.0,0.00017534,2]
[425093792,1781485844000,-500.0,0.00017534,2]
[425093794,1781485844000,-500.0,0.00017534,2]
[425093787,1781485844000,-1177.37,0.00017534,2]
[425093782,1781485844000,-728.28,0.00017534,2]
[425093793,1781485844000,-591.92,0.00017534,2]
[425093786,1781485844000,-926.79389579,0.00017534,2]
[425093790,1781485844000,-500.0,0.00017534,2]
[425093785,1781485844000,-500.0,0.00017534,2]
[425093783,1781485844000,-500.0,0.00017534,2]
[425093784,1781485844000,-2120.89,0.00017534,2]
[425093788,1781485844000,-500.0,0.00017534,2]
[425093789,1781485844000,-702.67,0.00017534,2]
[425093796,1781485844000,-1051.04,0.00017534,2]
[425093799,1781485844000,-500.0,0.00017534,2]
[425093806,1781485844000,-500.0,0.00017534,2]
[425093798,1781485844000,-500.0,0.00017534,2]
[425093800,1781485844000,-826.08,0.00017534,2]
[425093801,1781485844000,-873.71,0.00017534,2]
[425093797,1781485844000,-549.78,0.00017534,2]
[425093803,1781485844000,-500.0,0.00017534,2]
[425093804,1781485844000,-707.02,0.00017534,2]
[425093805,1781485844000,-500.0,0.00017534,2]
[425093802,1781485844000,-388.26280647,0.00017534,2]
[425093807,1781485844000,-500.0,0.00017534,2]
[425093810,1781485844000,-1199.3,0.00017534,2]
[425093814,1781485844000,-500.0,0.00017534,2]
[425093778,1781485844000,-958.24,0.00017534,2]
[425093795,1781485844000,-500.0,0.00017534,2]
[425093772,1781485844000,-500.0,0.00017534,2]
[425093749,1781485844000,-516.06,0.0001726,2]
[425093773,1781485844000,-500.0,0.00017534,2]
[425093808,1781485844000,-500.0,0.00017534,2]
[425093752,1781485844000,-652.96,0.0001726,2]
[425093748,1781485844000,-570.41,0.0001726,2]
[425093750,1781485844000,-1026.97,0.0001726,2]
[425093751,1781485844000,-3985.48,0.0001726,2]
[425093755,1781485844000,-3864.05,0.0001726,2]
[425093754,1781485844000,-500.0,0.0001726,2]
[425093753,1781485844000,-1444.06,0.0001726,2]
[425093757,1781485844000,-500.0,0.00017412,2]
[425093767,1781485844000,-500.0,0.00017534,2]
[425093768,1781485844000,-500.0,0.00017534,2]
[425093756,1781485844000,-3364.55888854,0.00017318,2]
[425093758,1781485844000,-1437.4926,0.00017534,2]
[425093763,1781485844000,-500.0,0.00017534,2]
[425093775,1781485844000,-500.0,0.00017534,2]
[425093762,1781485844000,-1107.68,0.00017534,2]
[425093759,1781485844000,-500.0,0.00017534,2]
[425093766,1781485844000,-500.0,0.00017534,2]
[425093760,1781485844000,-612.68,0.00017534,2]
[425093765,1781485844000,-500.0,0.00017534,2]
[425093764,1781485844000,-960.26,0.00017534,2]
[425093770,1781485844000,-541.86,0.00017534,2]
[425093780,1781485844000,-1098.36,0.00017534,2]
[425093769,1781485844000,-500.0,0.00017534,2]
[425093771,1781485844000,-500.0,0.00017534,2]
[425093777,1781485844000,-500.0,0.00017534,2]
[425093774,1781485844000,-594.82,0.00017534,2]
[425093779,1781485844000,-1049.05,0.00017534,2]
[425093781,1781485844000,-590.27,0.00017534,2]
[425093776,1781485844000,-564.0,0.00017534,2]
[425093761,1781485844000,-500.0,0.00017534,2]
[425093809,1781485844000,-1361.49,0.00017534,2]
[425093817,1781485844000,-614.05,0.00017534,2]
[425093818,1781485844000,-500.0,0.00017534,2]
[425093860,1781485844000,-1540.97,0.00017534,2]
[425093847,1781485844000,-500.0,0.00017534,2]
[425093849,1781485844000,-500.0,0.00017534,2]
[425093850,1781485844000,-500.0,0.00017534,2]
[425093858,1781485844000,-1391.77,0.00017534,2]
[425093851,1781485844000,-500.0,0.00017534,2]
[425093853,1781485844000,-500.0,0.00017534,2]
[425093857,1781485844000,-3589.03,0.00017534,2]
[425093852,1781485844000,-500.0,0.00017534,2]
[425093854,1781485844000,-3275.21,0.00017534,2]
[425093855,1781485844000,-483.10820074,0.00017534,2]
[425093856,1781485844000,-1483.3,0.00017534,2]
[425093861,1781485844000,-500.000099,0.00017534,2]
[425093862,1781485844000,-2447.16,0.00017534,2]
[425093873,1781485844000,-500.0,0.00017534,2]
[425093863,1781485844000,-6741.72,0.00017534,2]
[425093872,1781485844000,-500.0,0.00017534,2]
[425093864,1781485844000,-2615.48,0.00017534,2]
[425093870,1781485844000,-500.0,0.00017534,2]
[425093869,1781485844000,-1603.59,0.00017534,2]
[425093866,1781485844000,-1075.55,0.00017534,2]
[425093865,1781485844000,-500.0,0.00017534,2]
[425093871,1781485844000,-573.11,0.00017534,2]
[425093867,1781485844000,-1214.09,0.00017534,2]
[425093868,1781485844000,-1537.56,0.00017534,2]
[425093875,1781485844000,-516.06,0.00017534,2]
[425093811,1781485844000,-500.0,0.00017534,2]
[425093876,1781485844000,-1026.97,0.00017534,2]
[425093874,1781485844000,-570.41,0.00017534,2]
[425093859,1781485844000,-500.0,0.00017534,2]
[425093848,1781485844000,-1694.66,0.00017534,2]
[425093877,1781485844000,-3985.48,0.00017534,2]
[425093842,1781485844000,-500.0,0.00017534,2]
[425093841,1781485844000,-2499.39,0.00017534,2]
[425093819,1781485844000,-2430.55,0.00017534,2]
[425093812,1781485844000,-500.0,0.00017534,2]
[425093816,1781485844000,-941.26,0.00017534,2]
[425093815,1781485844000,-922.16,0.00017534,2]
[425093820,1781485844000,-1190.23,0.00017534,2]
[425093832,1781485844000,-24465.38,0.00017534,2]
[425093823,1781485844000,-602.24,0.00017534,2]
[425093821,1781485844000,-1543.62,0.00017534,2]
[425093822,1781485844000,-3183.59,0.00017534,2]
[425093831,1781485844000,-4238.28,0.00017534,2]
[425093829,1781485844000,-822.31,0.00017534,2]
[425093827,1781485844000,-2321.5,0.00017534,2]
[425093828,1781485844000,-1000.0,0.00017534,2]
[425093824,1781485844000,-625.12,0.00017534,2]
[425093813,1781485844000,-500.0,0.00017534,2]
[425093830,1781485844000,-500.0,0.00017534,2]
[425093825,1781485844000,-661.34,0.00017534,2]
[425093843,1781485844000,-500.0,0.00017534,2]
[425093836,1781485844000,-500.0,0.00017534,2]
[425093837,1781485844000,-1031.95,0.00017534,2]
[425093839,1781485844000,-500.0,0.00017534,2]
[425093835,1781485844000,-500.0,0.00017534,2]
[425093844,1781485844000,-500.0,0.00017534,2]
[425093846,1781485844000,-500.0,0.00017534,2]
[425093826,1781485844000,-500.0,0.00017534,2]
[425093838,1781485844000,-1066.17,0.00017534,2]
[425093845,1781485844000,-500.0,0.00017534,2]
[425093834,1781485844000,-500.0,0.00017534,2]
[425093840,1781485844000,-1498.92,0.00017534,2]
[425093833,1781485844000,-1708.54,0.00017534,2]
[425093909,1781485845000,-728.28,0.00017808,2]
[425093919,1781485845000,-591.92,0.00017808,2]
[425093912,1781485845000,-500.0,0.00017808,2]
[425093913,1781485845000,-1177.37,0.00017808,2]
[425093911,1781485845000,-2120.89,0.00017808,2]
[425093915,1781485845000,-702.67,0.00017808,2]
[425093916,1781485845000,-500.0,0.00017808,2]
[425093914,1781485845000,-500.0,0.00017808,2]
[425093917,1781485845000,-500.0,0.00017808,2]
[425093918,1781485845000,-500.0,0.00017808,2]
[425093922,1781485845000,-1051.04,0.00017808,2]
[425093921,1781485845000,-500.0,0.00017808,2]
[425093910,1781485845000,-500.0,0.00017808,2]
[425093928,1781485845000,-500.0,0.00017808,2]
[425093923,1781485845000,-549.78,0.00017808,2]
[425093924,1781485845000,-500.0,0.00017808,2]
[425093925,1781485845000,-500.0,0.00017808,2]
[425093927,1781485845000,-873.71,0.00017808,2]
[425093926,1781485845000,-826.08,0.00017808,2]
[425093929,1781485845000,-707.02,0.00017808,2]
[425093934,1781485845000,-1361.49,0.00017808,2]
[425093930,1781485845000,-500.0,0.00017808,2]
[425093933,1781485845000,-500.0,0.00017808,2]
[425093935,1781485845000,-1199.3,0.00017808,2]
[425093931,1781485845000,-500.0,0.00017808,2]
[425093907,1781485845000,-1098.36,0.00017808,2]
[425093920,1781485845000,-500.0,0.00017808,2]
[425093908,1781485845000,-590.27,0.00017808,2]
[425093893,1781485845000,-500.0,0.00017808,2]
[425093904,1781485845000,-500.0,0.00017808,2]
[425093932,1781485845000,-500.0,0.00017808,2]
[425093886,1781485845000,-500.0,0.00017808,2]
[425093878,1781485845000,-652.96,0.00017534,2]
[425093885,1781485845000,-1437.4926,0.00017808,2]
[425093884,1781485845000,-500.0,0.00017686,2]
[425093882,1781485845000,-3218.56276026,0.00017563,2]
[425093881,1781485845000,-3864.05,0.00017534,2]
[425093883,1781485845000,-2481.878998,0.00017564,2]
[425093880,1781485845000,-500.0,0.00017534,2]
[425093887,1781485845000,-612.68,0.00017808,2]
[425093888,1781485845000,-500.0,0.00017808,2]
[425093889,1781485845000,-1107.68,0.00017808,2]
[425093906,1781485845000,-1049.05,0.00017808,2]
[425093896,1781485845000,-500.0,0.00017808,2]
[425093890,1781485845000,-500.0,0.00017808,2]
[425093891,1781485845000,-960.26,0.00017808,2]
[425093892,1781485845000,-500.0,0.00017808,2]
[425093895,1781485845000,-500.0,0.00017808,2]
[425093897,1781485845000,-541.86,0.00017808,2]
[425093900,1781485845000,-500.0,0.00017808,2]
[425093899,1781485845000,-395.55992165,0.00017808,2]
[425093901,1781485845000,-594.82,0.00017808,2]
[425093898,1781485845000,-500.0,0.00017808,2]
[425093902,1781485845000,-500.0,0.00017808,2]
[425093905,1781485845000,-958.24,0.00017808,2]
[425093903,1781485845000,-564.0,0.00017808,2]
[425093894,1781485845000,-500.0,0.00017808,2]
[425093936,1781485845000,-500.0,0.00017808,2]
[425093879,1781485845000,-1444.06,0.00017534,2]
[425093938,1781485845000,-500.0,0.00017808,2]
[425093980,1781485845000,-1483.3,0.00017808,2]
[425093973,1781485845000,-1694.66,0.00017808,2]
[425093975,1781485845000,-500.0,0.00017808,2]
[425093972,1781485845000,-500.0,0.00017808,2]
[425093971,1781485845000,-500.0,0.00017808,2]
[425093976,1781485845000,-500.0,0.00017808,2]
[425093969,1781485845000,-500.0,0.00017808,2]
[425093974,1781485845000,-500.0,0.00017808,2]
[425093977,1781485845000,-500.0,0.00017808,2]
[425093979,1781485845000,-3275.21,0.00017808,2]
[425093978,1781485845000,-345.53270324,0.00017808,2]
[425093981,1781485845000,-3589.03,0.00017808,2]
[425093982,1781485845000,-1391.77,0.00017808,2]
[425093983,1781485845000,-500.0,0.00017808,2]
[425093984,1781485845000,-1540.97,0.00017808,2]
[425093993,1781485845000,-500.0,0.00017808,2]
[425093987,1781485845000,-2615.48,0.00017808,2]
[425093989,1781485845000,-1075.55,0.00017808,2]
[425093985,1781485845000,-2447.16,0.00017808,2]
[425093992,1781485845000,-1603.59,0.00017808,2]
[425093996,1781485845000,-500.0,0.00017808,2]
[425093986,1781485845000,-6741.72,0.00017808,2]
[425093988,1781485845000,-500.0,0.00017808,2]
[425093990,1781485845000,-1214.09,0.00017808,2]
[425093991,1781485845000,-1537.56,0.00017808,2]
[425093995,1781485845000,-500.0,0.00017808,2]
[425093994,1781485845000,-573.11,0.00017808,2]
[425093970,1781485845000,-500.0,0.00017808,2]
[425093968,1781485845000,-500.0,0.00017808,2]
[425093939,1781485845000,-500.0,0.00017808,2]
[425093957,1781485845000,-24465.38,0.00017808,2]
[425093940,1781485845000,-922.16,0.00017808,2]
[425093937,1781485845000,-500.0,0.00017808,2]
[425093941,1781485845000,-941.26,0.00017808,2]
[425093953,1781485845000,-1000.0,0.00017808,2]
[425093943,1781485845000,-2430.55,0.00017808,2]
[425093942,1781485845000,-614.05,0.00017808,2]
[425093944,1781485845000,-500.0,0.00017808,2]
[425093948,1781485845000,-602.24,0.00017808,2]
[425093954,1781485845000,-822.31,0.00017808,2]
[425093946,1781485845000,-1543.62,0.00017808,2]
[425093955,1781485845000,-500.0,0.00017808,2]
[425093947,1781485845000,-3183.59,0.00017808,2]
[425093945,1781485845000,-1190.23,0.00017808,2]
[425093967,1781485845000,-500.0,0.00017808,2]
[425093952,1781485845000,-2321.5,0.00017808,2]
[425093951,1781485845000,-500.0,0.00017808,2]
[425093960,1781485845000,-500.0,0.00017808,2]
[425093961,1781485845000,-500.0,0.00017808,2]
[425093965,1781485845000,-1498.92,0.00017808,2]
[425093966,1781485845000,-2499.39,0.00017808,2]
[425093962,1781485845000,-1031.95,0.00017808,2]
[425093958,1781485845000,-1708.54,0.00017808,2]
[425093964,1781485845000,-500.0,0.00017808,2]
[425093959,1781485845000,-500.0,0.00017808,2]
[425093956,1781485845000,-4238.28,0.00017808,2]
[425093949,1781485845000,-625.12,0.00017808,2]
[425093950,1781485845000,-661.34,0.00017808,2]
[425093963,1781485845000,-1066.17,0.00017808,2]
[425094008,1781485846000,-247.347,0.00017916,2]
[425094020,1781485846000,-212.52,0.00018,2]
[425094014,1781485846000,-957.0,0.00017916,2]
[425094016,1781485846000,-472.091,0.00017916,2]
[425094012,1781485846000,-1417.0,0.00017916,2]
[425094015,1781485846000,-326.403,0.00017916,2]
[425094017,1781485846000,-1688.72986316,0.00018,2]
[425094022,1781485846000,-1437.4926,0.00018082,2]
[425094018,1781485846000,-212.52,0.00018,2]
[425094013,1781485846000,-1840.0,0.00017916,2]
[425094019,1781485846000,-212.52,0.00018,2]
[425094001,1781485846000,-652.96,0.00017808,2]
[425094009,1781485846000,-249.07,0.00017916,2]
[425094010,1781485846000,-150.904,0.00017916,2]
[425094000,1781485846000,-3985.48,0.00017808,2]
[425094002,1781485846000,-1444.06,0.00017808,2]
[425094032,1781485846000,-500.0,0.00018082,2]
[425093999,1781485846000,-1026.97,0.00017808,2]
[425093997,1781485846000,-570.41,0.00017808,2]
[425093998,1781485846000,-516.06,0.00017808,2]
[425094003,1781485846000,-513.14188397,0.00017808,2]
[425094006,1781485846000,-150.293,0.00017916,2]
[425094005,1781485846000,-4885.37919307,0.00017893,2]
[425094007,1781485846000,-150.334,0.00017916,2]
[425094023,1781485846000,-500.0,0.00018082,2]
[425094004,1781485846000,-250.07286682,0.00017866,2]
[425094033,1781485846000,-500.0,0.00018082,2]
[425094021,1781485846000,-394.23580649,0.00018015,2]
[425094049,1781485846000,-143.96727456,0.00017808,2]
[425094048,1781485846000,-1004.31772434,0.00017808,2]
[425094047,1781485846000,-485.7107963,0.00017808,2]
[425094046,1781485846000,-2374.02147936,0.00017808,2]
[425094044,1781485846000,-1095.91,0.0001726,2]
[425094043,1781485846000,-1095.91,0.00016986,2]
[425094045,1781485846000,-1095.91,0.00017534,2]
[425094042,1781485846000,-424.13063165,0.00016712,2]
[425094041,1781485846000,-671.77936835,0.00016712,2]
[425094040,1781485846000,-310.1940517,0.00018082,2]
[425094039,1781485846000,-71.7374595,0.00018082,2]
[425094038,1781485846000,-1095.91,0.00016438,2]
[425094011,1781485846000,-284.73,0.00017916,2]
[425094034,1781485846000,-541.86,0.00018082,2]
[425094035,1781485846000,-500.0,0.00018082,2]
[425094037,1781485846000,-523.0825405,0.00018082,2]
[425094030,1781485846000,-500.0,0.00018082,2]
[425094036,1781485846000,-500.0,0.00018082,2]
[425094028,1781485846000,-960.26,0.00018082,2]
[425094031,1781485846000,-500.0,0.00018082,2]
[425094027,1781485846000,-500.0,0.00018082,2]
[425094025,1781485846000,-500.0,0.00018082,2]
[425094029,1781485846000,-500.0,0.00018082,2]
[425094026,1781485846000,-1107.68,0.00018082,2]
[425094024,1781485846000,-612.68,0.00018082,2]
[425094057,1781485849000,-494.293216,0.00016438,2]
[425094058,1781485849000,-524.30958529,0.00016438,2]
[425094082,1781485850000,-500.0,0.00018082,2]
[425094085,1781485850000,-591.92,0.00018082,2]
[425094088,1781485850000,-1051.04,0.00018082,2]
[425094081,1781485850000,-702.67,0.00018082,2]
[425094086,1781485850000,-500.0,0.00018082,2]
[425094084,1781485850000,-521.83440319,0.00018082,2]
[425094083,1781485850000,-500.0,0.00018082,2]
[425094087,1781485850000,-500.0,0.00018082,2]
[425094093,1781485850000,-873.71,0.00018082,2]
[425094098,1781485850000,-500.0,0.00018082,2]
[425094094,1781485850000,-500.0,0.00018082,2]
[425094097,1781485850000,-500.0,0.00018082,2]
[425094095,1781485850000,-707.02,0.00018082,2]
[425094080,1781485850000,-500.0,0.00018082,2]
[425094099,1781485850000,-500.0,0.00018082,2]
[425094100,1781485850000,-1361.49,0.00018082,2]
[425094096,1781485850000,-500.0,0.00018082,2]
[425094101,1781485850000,-1199.3,0.00018082,2]
[425094103,1781485850000,-500.0,0.00018082,2]
[425094091,1781485850000,-500.0,0.00018082,2]
[425094078,1781485850000,-500.0,0.00018082,2]
[425094070,1781485850000,-500.0,0.00018082,2]
[425094089,1781485850000,-549.78,0.00018082,2]
[425094102,1781485850000,-500.0,0.00018082,2]
[425094059,1781485850000,-1369.08719871,0.00016438,2]
[425094060,1781485850000,-2387.69,0.00016712,2]
[425094061,1781485850000,-89.18264629,0.00016986,2]
[425094062,1781485850000,-799.63,0.00016438,2]
[425094065,1781485850000,-2387.69,0.00017534,2]
[425094063,1781485850000,-2298.50735371,0.00016986,2]
[425094064,1781485850000,-2387.69,0.0001726,2]
[425094066,1781485850000,-951.94272544,0.00017808,2]
[425094073,1781485850000,-1098.36,0.00018082,2]
[425094077,1781485850000,-2120.89,0.00018082,2]
[425094068,1781485850000,-189.8059483,0.00018082,2]
[425094069,1781485850000,-564.0,0.00018082,2]
[425094071,1781485850000,-958.24,0.00018082,2]
[425094076,1781485850000,-500.0,0.00018082,2]
[425094072,1781485850000,-1049.05,0.00018082,2]
[425094074,1781485850000,-590.27,0.00018082,2]
[425094075,1781485850000,-728.28,0.00018082,2]
[425094079,1781485850000,-1177.37,0.00018082,2]
[425094090,1781485850000,-382.00737303,0.00018082,2]
[425094067,1781485850000,-2387.69,0.00017808,2]
[425094092,1781485850000,-826.08,0.00018082,2]
[425094114,1781485850000,-661.34,0.00018082,2]
[425094132,1781485850000,-500.0,0.00018082,2]
[425094142,1781485850000,-3589.03,0.00018082,2]
[425094143,1781485850000,-1391.77,0.00018082,2]
[425094133,1781485850000,-500.0,0.00018082,2]
[425094131,1781485850000,-500.0,0.00018082,2]
[425094144,1781485850000,-554.79188344,0.00018082,2]
[425094134,1781485850000,-258.57619157,0.00018082,2]
[425094135,1781485850000,-1694.66,0.00018082,2]
[425094140,1781485850000,-3275.21,0.00018082,2]
[425094130,1781485850000,-500.0,0.00018082,2]
[425094141,1781485850000,-1483.3,0.00018082,2]
[425094139,1781485850000,-500.0,0.00018082,2]
[425094138,1781485850000,-500.0,0.00018082,2]
[425094137,1781485850000,-500.0,0.00018082,2]
[425094147,1781485850000,-6269.43220962,0.00018082,2]
[425094145,1781485850000,-1540.97,0.00018082,2]
[425094146,1781485850000,-2447.16,0.00018082,2]
[425094148,1781485850000,-472.28779038,0.00018082,2]
[425094149,1781485850000,-1113.40213861,0.00018082,2]
[425094112,1781485850000,-602.24,0.00018082,2]
[425094136,1781485850000,-500.0,0.00018082,2]
[425094128,1781485850000,-1498.92,0.00018082,2]
[425094119,1781485850000,-500.0,0.00018082,2]
[425094125,1781485850000,-500.0,0.00018082,2]
[425094115,1781485850000,-500.0,0.00018082,2]
[425094106,1781485850000,-922.16,0.00018082,2]
[425094105,1781485850000,-500.0,0.00018082,2]
[425094116,1781485850000,-2321.5,0.00018082,2]
[425094107,1781485850000,-941.26,0.00018082,2]
[425094117,1781485850000,-1000.0,0.00018082,2]
[425094109,1781485850000,-2430.55,0.00018082,2]
[425094111,1781485850000,-1190.23,0.00018082,2]
[425094110,1781485850000,-500.0,0.00018082,2]
[425094113,1781485850000,-625.12,0.00018082,2]
[425094122,1781485850000,-1708.54,0.00018082,2]
[425094108,1781485850000,-614.05,0.00018082,2]
[425094127,1781485850000,-500.0,0.00018082,2]
[425094129,1781485850000,-500.0,0.00018082,2]
[425094120,1781485850000,-4238.28,0.00018082,2]
[425094104,1781485850000,-500.0,0.00018082,2]
[425094124,1781485850000,-500.0,0.00018082,2]
[425094121,1781485850000,-24465.38,0.00018082,2]
[425094126,1781485850000,-1031.95,0.00018082,2]
[425094118,1781485850000,-822.31,0.00018082,2]
[425094123,1781485850000,-500.0,0.00018082,2]
[425094171,1781487007000,178.0,0.0002,120]
[425094182,1781487032000,-460.99863137,0.00011053,2]
[425094208,1781487032000,-4539.00136863,0.00011053,2]
[425094212,1781487032000,-151.0,0.0001174,2]
[425094210,1781487032000,-993.27453828,0.00011165,2]
[425094214,1781487032000,-1000.0,0.00014485,2]
[425094221,1781487032000,-179.865489,0.00015068,2]
[425094225,1781487032000,-2442.68959657,0.00016237,2]
[425094226,1781487032000,-500.0,0.00016276,2]
[425094232,1781487032000,-182.99291273,0.00016276,2]
[425094230,1781487032000,-500.0,0.00016276,2]
[425094234,1781487032000,-1966.1323083,0.00016277,2]
[425094223,1781487032000,-827.292999,0.00016034,2]
[425094228,1781487032000,-214.88732135,0.00016276,2]
[425094238,1781487033000,-598.70512035,0.00016277,2]
[425094236,1781487033000,-13671.20359844,0.00016277,2]
[425094414,1781487039000,-2696.13978985,0.00016277,2]
[425094389,1781487039000,-353.41771679,0.00016277,2]
[425094493,1781487041000,-2562.96656148,0.00016277,2]
[425094494,1781487042000,-681.53370807,0.00016277,2]
[425094495,1781487042000,-285.07109027,0.00016337,2]
[425094496,1781487042000,-4213.49110348,0.00016338,2]
[425094529,1781487047000,-1154.040155,0.00016175,2]
[425094530,1781487047000,-4946.03851482,0.00016338,2]
[425094524,1781487047000,-3845.959845,0.00016175,2]
[425094534,1781487110000,-310.31164068,0.00015954,2]
[425094535,1781487127000,-615.908,0.00016013,2]
[425094541,1781487802000,1126.0,0.0002411,30]
[425094604,1781488232000,-567.22011379,0.00013687,13]
[425094658,1781488241000,-1825.08070627,0.00013687,13]
[425094659,1781488241000,-2607.69917994,0.00013687,13]
[425094661,1781488241000,-258.600108,0.00015011,2]
[425094664,1781488241000,-224.51295013,0.00015913,2]
[425094662,1781488241000,-180.645453,0.00015166,2]
[425094663,1781488241000,-168.7403039,0.0001521,2]
[425094670,1781488241000,-9214.6901834,0.00016238,2]
[425094665,1781488241000,-3323.26925587,0.00016138,2]
[425094672,1781488241000,-19200.15377925,0.00016238,2]
[425094668,1781488241000,-186.499,0.00016237,2]
[425094666,1781488241000,-2330.2551792,0.0001617,2]
[425094660,1781488241000,-615.908,0.00013825,13]
[425094667,1781488241000,-645.23,0.00016228,3]
[425094669,1781488241000,-497.82737816,0.00016237,2]
[425094688,1781488243000,-2308.22724099,0.00016238,2]
[425094690,1781488244000,-894.9024806,0.00016238,2]
[425094689,1781488244000,-565.21278922,0.00016238,2]
[425094702,1781488247000,-57801.90359077,0.00016238,2]
[425094703,1781488247000,-2665.41728863,0.00016238,2]
[425094701,1781488247000,-32374.03041795,0.00016238,2]
[425094706,1781488392000,3000.0,0.000241,30]
[425094736,1781488667000,150.64221931,0.00019279,30]
[425094751,1781488834000,-423.0,0.0001,5]
[425094764,1781489306000,206.01316165,0.00018962,120]
[425094786,1781489431000,-4029.16961007,0.00011761,2]
[425094799,1781489431000,-774.0132398,0.00015476,2]
[425094787,1781489431000,-2626.39508957,0.00012,2]
[425094788,1781489431000,-152.0,0.00014047,7]
[425094789,1781489431000,-258.6001098,0.0001439,2]
[425094791,1781489431000,-500.0,0.00015476,2]
[425094790,1781489431000,-734.0504179,0.0001459,2]
[425094798,1781489431000,-500.0,0.00015476,2]
[425094797,1781489431000,-500.0,0.00015476,2]
[425094793,1781489431000,-500.0,0.00015476,2]
[425094792,1781489431000,-500.0,0.00015476,2]
[425094801,1781489431000,-18896.9984867,0.00015938,2]
[425094800,1781489431000,-186.5,0.00015717,2]
[425094802,1781489431000,-27196.63717505,0.00015938,2]
[425094796,1781489431000,-500.0,0.00015476,2]
[425094794,1781489431000,-500.0,0.00015476,2]
[425094795,1781489431000,-500.0,0.00015476,2]
[425094812,1781489438000,-32943.07998254,0.00015938,2]
[425094811,1781489438000,-1321.19056592,0.00015938,2]
[425094810,1781489438000,-39509.79556812,0.00015938,2]
[425095005,1781489443000,-304.25747825,0.00015938,2]